[Event "Early-Titled-Tuesday-Blitz-October-24-2023"]
[Site "Chess.com"]
[Date "2023.10.24"]
[Round "11"]
[White "gpsji27"]
[Black "mary-sanna"]
[Result "1/2-1/2"]
[WhiteElo "2292"]
[BlackElo "2205"]
[TimeControl "180+1"]
[EndTime "10:02:45 PDT"]
[Termination "Game drawn by stalemate"]

1. d4 {[%clk 0:03:00.9]} 1... Nf6 {[%clk 0:02:59.4]} 2. Nf3 {[%clk 0:03:00.6]}
2... d5 {[%clk 0:02:59]} 3. Bg5 {[%clk 0:03:00.4]} 3... Bg4 {[%clk 0:02:38.6]}
4. Ne5 {[%clk 0:02:55.8]} 4... Bf5 {[%clk 0:02:32.9]} 5. c4 {[%clk 0:02:46.4]}
5... c6 {[%clk 0:02:28.6]} 6. Nc3 {[%clk 0:02:44.9]} 6... e6 {[%clk 0:02:26.5]}
7. e3 {[%clk 0:02:44.9]} 7... Be7 {[%clk 0:02:24.8]} 8. Qb3 {[%clk 0:02:38.9]}
8... Qb6 {[%clk 0:02:20.3]} 9. c5 {[%clk 0:02:37.1]} 9... Qxb3 {[%clk
0:02:19.4]} 10. axb3 {[%clk 0:02:38]} 10... Nbd7 {[%clk 0:02:18.1]} 11. f4
{[%clk 0:02:36.3]} 11... h6 {[%clk 0:02:14.9]} 12. Bh4 {[%clk 0:02:36.4]} 12...
Nxe5 {[%clk 0:02:08.7]} 13. fxe5 {[%clk 0:02:36.4]} 13... Ne4 {[%clk 0:02:08.8]}
14. Bxe7 {[%clk 0:02:37.3]} 14... Kxe7 {[%clk 0:02:08.9]} 15. Be2 {[%clk
0:02:33.5]} 15... b6 {[%clk 0:02:05.1]} 16. b4 {[%clk 0:02:32.4]} 16... Rhb8
{[%clk 0:02:00.7]} 17. Na4 {[%clk 0:02:28.2]} 17... bxc5 {[%clk 0:01:57.1]} 18.
bxc5 {[%clk 0:02:29.1]} 18... Rb3 {[%clk 0:01:51]} 19. Nb6 {[%clk 0:02:21.7]}
19... axb6 {[%clk 0:01:16.6]} 20. Rxa8 {[%clk 0:02:18.5]} 20... bxc5 {[%clk
0:01:16.5]} 21. Ra7+ {[%clk 0:02:18.3]} 21... Kf8 {[%clk 0:01:16.4]} 22. O-O
{[%clk 0:02:14.9]} 22... Rxe3 {[%clk 0:01:01.6]} 23. Bh5 {[%clk 0:02:09.3]}
23... g6 {[%clk 0:00:59.8]} 24. g4 {[%clk 0:02:09]} 24... gxh5 {[%clk
0:00:47.7]} 25. gxf5 {[%clk 0:02:08.9]} 25... exf5 {[%clk 0:00:35.4]} 26. Rxf5
{[%clk 0:02:08.2]} 26... Ng5 {[%clk 0:00:20.6]} 27. h4 {[%clk 0:02:04.4]} 27...
Rf3 {[%clk 0:00:20.5]} 28. Raxf7+ {[%clk 0:01:56.3]} 28... Nxf7 {[%clk
0:00:18.9]} 29. Rxf3 {[%clk 0:01:57.2]} 29... Ke7 {[%clk 0:00:19]} 30. dxc5
{[%clk 0:01:52]} 30... Nxe5 {[%clk 0:00:19]} 31. Rf5 {[%clk 0:01:42.5]} 31...
Nd3 {[%clk 0:00:18]} 32. Rxh5 {[%clk 0:01:42.1]} 32... Nxc5 {[%clk 0:00:16.9]}
33. Rxh6 {[%clk 0:01:42.5]} 33... Kd7 {[%clk 0:00:16.5]} 34. Rh7+ {[%clk
0:01:39.4]} 34... Kd6 {[%clk 0:00:14.2]} 35. h5 {[%clk 0:01:39.7]} 35... d4
{[%clk 0:00:14.2]} 36. Rf7 {[%clk 0:01:36.9]} 36... d3 {[%clk 0:00:13.9]} 37.
Rf1 {[%clk 0:01:36.7]} 37... Ne4 {[%clk 0:00:11.5]} 38. h6 {[%clk 0:01:36]}
38... Ng5 {[%clk 0:00:10.4]} 39. Rd1 {[%clk 0:01:36]} 39... Ke6 {[%clk 0:00:08]}
40. Rxd3 {[%clk 0:01:36.6]} 40... Kf6 {[%clk 0:00:07.8]} 41. Rd6+ {[%clk
0:01:37.1]} 41... Kf7 {[%clk 0:00:07.3]} 42. Rxc6 {[%clk 0:01:38]} 42... Nf3+
{[%clk 0:00:05.3]} 43. Kf2 {[%clk 0:01:37.1]} 43... Ne5 {[%clk 0:00:04.2]} 44.
Ra6 {[%clk 0:01:37.1]} 44... Ng4+ {[%clk 0:00:03.9]} 45. Kg3 {[%clk 0:01:32.2]}
45... Ne5 {[%clk 0:00:03.9]} 46. b4 {[%clk 0:01:28.1]} 46... Nd3 {[%clk
0:00:02.1]} 47. b5 {[%clk 0:01:23.3]} 47... Nc5 {[%clk 0:00:01.9]} 48. Ra7+
{[%clk 0:01:17.4]} 48... Kg8 {[%clk 0:00:02]} 49. h7+ {[%clk 0:01:18.3]} 49...
Kh8 {[%clk 0:00:02.1]} 50. b6 {[%clk 0:01:14.4]} 50... Ne4+ {[%clk 0:00:01.9]}
51. Kf4 {[%clk 0:01:14.7]} 51... Nd6 {[%clk 0:00:01.9]} 52. b7 {[%clk
0:01:13.3]} 52... Nxb7 {[%clk 0:00:01.9]} 53. Rxb7 {[%clk 0:01:14.2]} 1/2-1/2

[Event "Early-Titled-Tuesday-Blitz-October-24-2023"]
[Site "Chess.com"]
[Date "2023.10.24"]
[Round "11"]
[White "whiteglovethief"]
[Black "jaskol95"]
[Result "1-0"]
[WhiteElo "2453"]
[BlackElo "2545"]
[TimeControl "180+1"]
[EndTime "10:02:49 PDT"]
[Termination "whiteglovethief won on time"]

1. d4 {[%clk 0:02:56.9]} 1... d5 {[%clk 0:03:00.1]} 2. Bf4 {[%clk 0:02:53.9]}
2... Nf6 {[%clk 0:02:53.3]} 3. e3 {[%clk 0:02:53.8]} 3... c6 {[%clk 0:02:52.9]}
4. c3 {[%clk 0:02:51.2]} 4... g6 {[%clk 0:02:48.1]} 5. Bd3 {[%clk 0:02:48.4]}
5... Bg7 {[%clk 0:02:48.5]} 6. Nd2 {[%clk 0:02:48.1]} 6... O-O {[%clk
0:02:46.5]} 7. Ngf3 {[%clk 0:02:47.4]} 7... Nbd7 {[%clk 0:02:40.5]} 8. Ne5
{[%clk 0:02:43.7]} 8... Nxe5 {[%clk 0:02:39.1]} 9. Bxe5 {[%clk 0:02:43.7]} 9...
Ng4 {[%clk 0:02:25]} 10. Bxg7 {[%clk 0:02:41.8]} 10... Kxg7 {[%clk 0:02:25.9]}
11. h3 {[%clk 0:02:40.4]} 11... Nf6 {[%clk 0:02:24.4]} 12. Qe2 {[%clk
0:02:37.5]} 12... c5 {[%clk 0:02:15.6]} 13. O-O {[%clk 0:02:34.7]} 13... c4
{[%clk 0:02:14.7]} 14. Bc2 {[%clk 0:02:34.5]} 14... b5 {[%clk 0:02:13.8]} 15. e4
{[%clk 0:02:29.9]} 15... dxe4 {[%clk 0:02:08.1]} 16. Nxe4 {[%clk 0:02:30.8]}
16... Bb7 {[%clk 0:01:59.4]} 17. Nxf6 {[%clk 0:02:19]} 17... exf6 {[%clk
0:01:59.4]} 18. Rfe1 {[%clk 0:02:17.8]} 18... Re8 {[%clk 0:01:31.2]} 19. Qxe8
{[%clk 0:02:16]} 19... Qxe8 {[%clk 0:01:32.1]} 20. Rxe8 {[%clk 0:02:15.6]} 20...
Rxe8 {[%clk 0:01:33]} 21. Kf1 {[%clk 0:02:15.8]} 21... f5 {[%clk 0:01:33.1]} 22.
a4 {[%clk 0:02:09.7]} 22... a6 {[%clk 0:01:28.2]} 23. axb5 {[%clk 0:02:09.8]}
23... axb5 {[%clk 0:01:29.1]} 24. Ra5 {[%clk 0:02:05.5]} 24... Bc6 {[%clk
0:01:28.5]} 25. Ra6 {[%clk 0:02:04.2]} 25... Re6 {[%clk 0:01:18.7]} 26. Ra7
{[%clk 0:01:50.2]} 26... f4 {[%clk 0:01:18]} 27. f3 {[%clk 0:01:43.9]} 27... h5
{[%clk 0:01:11.9]} 28. Ra5 {[%clk 0:01:35.2]} 28... g5 {[%clk 0:00:18.8]} 29.
Be4 {[%clk 0:01:27.8]} 29... Bxe4 {[%clk 0:00:18.1]} 30. fxe4 {[%clk 0:01:28.7]}
30... Rxe4 {[%clk 0:00:18.8]} 31. Rxb5 {[%clk 0:01:29.1]} 31... Kf6 {[%clk
0:00:16.9]} 32. Rc5 {[%clk 0:01:25.1]} 32... Re3 {[%clk 0:00:09.6]} 33. Rxc4
{[%clk 0:01:23.1]} 33... g4 {[%clk 0:00:10.2]} 34. Rc5 {[%clk 0:01:20.8]} 34...
gxh3 {[%clk 0:00:08.8]} 35. Rxh5 {[%clk 0:01:19.6]} 35... hxg2+ {[%clk
0:00:08.8]} 36. Kxg2 {[%clk 0:01:19.5]} 36... Re2+ {[%clk 0:00:09.3]} 37. Kf3
{[%clk 0:01:19.6]} 37... Rxb2 {[%clk 0:00:08.2]} 38. Kxf4 {[%clk 0:01:19.8]}
38... Rc2 {[%clk 0:00:07.2]} 39. Rh6+ {[%clk 0:01:18.3]} 39... Ke7 {[%clk
0:00:07.4]} 40. Rh3 {[%clk 0:01:18.1]} 40... Kd6 {[%clk 0:00:07]} 41. Ke4 {[%clk
0:01:16.9]} 41... Rc1 {[%clk 0:00:05.9]} 42. Rf3 {[%clk 0:01:14.3]} 42... Ke6
{[%clk 0:00:05.3]} 43. d5+ {[%clk 0:01:02.1]} 43... Ke7 {[%clk 0:00:05.5]} 44.
Kd4 {[%clk 0:01:00.7]} 44... Rc2 {[%clk 0:00:03.2]} 45. c4 {[%clk 0:01:00.5]}
45... Rd2+ {[%clk 0:00:03.1]} 46. Rd3 {[%clk 0:00:59.9]} 46... Rc2 {[%clk
0:00:03.5]} 47. c5 {[%clk 0:00:59.7]} 47... Kd7 {[%clk 0:00:03.4]} 48. Ra3
{[%clk 0:00:54.9]} 48... Rf2 {[%clk 0:00:03.1]} 49. Ra7+ {[%clk 0:00:53.4]}
49... Kc8 {[%clk 0:00:03.6]} 50. Ke5 {[%clk 0:00:52.6]} 50... f5 {[%clk
0:00:03.5]} 51. d6 {[%clk 0:00:50.6]} 1-0

[Event "Early-Titled-Tuesday-Blitz-October-24-2023"]
[Site "Chess.com"]
[Date "2023.10.24"]
[Round "11"]
[White "laiciffOneslraCsungaM"]
[Black "crazy_m_attack"]
[Result "1-0"]
[WhiteElo "2347"]
[BlackElo "2431"]
[TimeControl "180+1"]
[EndTime "10:02:49 PDT"]
[Termination "laiciffOneslraCsungaM won by checkmate"]

1. d4 {[%clk 0:03:00.9]} 1... Nf6 {[%clk 0:02:59.8]} 2. Bf4 {[%clk 0:02:56]}
2... d5 {[%clk 0:02:59.1]} 3. e3 {[%clk 0:02:51.2]} 3... c5 {[%clk 0:02:59]} 4.
Nf3 {[%clk 0:02:40.1]} 4... Nc6 {[%clk 0:02:58.5]} 5. Nbd2 {[%clk 0:02:39]} 5...
cxd4 {[%clk 0:02:57.9]} 6. exd4 {[%clk 0:02:35.1]} 6... Bf5 {[%clk 0:02:57.9]}
7. Bb5 {[%clk 0:02:31.3]} 7... Qb6 {[%clk 0:02:49.4]} 8. c4 {[%clk 0:02:27.3]}
8... dxc4 {[%clk 0:02:48.5]} 9. a4 {[%clk 0:02:26.3]} 9... e6 {[%clk 0:02:41.6]}
10. Nxc4 {[%clk 0:02:22.1]} 10... Qd8 {[%clk 0:02:16]} 11. O-O {[%clk
0:02:16.9]} 11... Be7 {[%clk 0:02:13.3]} 12. a5 {[%clk 0:02:02.7]} 12... a6
{[%clk 0:02:08.5]} 13. Bxc6+ {[%clk 0:01:56.1]} 13... bxc6 {[%clk 0:02:09.4]}
14. Nfe5 {[%clk 0:01:56.9]} 14... Nd5 {[%clk 0:01:23.5]} 15. Nxc6 {[%clk
0:01:43.6]} 15... Qd7 {[%clk 0:01:22.7]} 16. Nxe7 {[%clk 0:01:35.1]} 16... Nxf4
{[%clk 0:01:08.7]} 17. Nxf5 {[%clk 0:01:33.6]} 17... exf5 {[%clk 0:01:06.4]} 18.
Nb6 {[%clk 0:01:20.9]} 18... Qb7 {[%clk 0:01:02.1]} 19. Re1+ {[%clk 0:01:04.6]}
19... Kf8 {[%clk 0:00:59]} 20. d5 {[%clk 0:00:49.4]} 20... Rd8 {[%clk
0:00:47.2]} 21. Ra4 {[%clk 0:00:47.7]} 21... Ng6 {[%clk 0:00:31.5]} 22. d6
{[%clk 0:00:44.1]} 22... Kg8 {[%clk 0:00:21.7]} 23. d7 {[%clk 0:00:43.7]} 23...
h6 {[%clk 0:00:22]} 24. g3 {[%clk 0:00:36.5]} 24... Kh7 {[%clk 0:00:21.8]} 25.
h4 {[%clk 0:00:36.7]} 25... Nf8 {[%clk 0:00:09.1]} 26. Rd4 {[%clk 0:00:28.8]}
26... Ne6 {[%clk 0:00:08.7]} 27. Rd6 {[%clk 0:00:25.6]} 27... f4 {[%clk
0:00:03.6]} 28. Qd3+ {[%clk 0:00:23.3]} 28... g6 {[%clk 0:00:02.7]} 29. Rdxe6
{[%clk 0:00:21.8]} 29... fxe6 {[%clk 0:00:03.2]} 30. Rxe6 {[%clk 0:00:22.5]}
30... Rhg8 {[%clk 0:00:03.7]} 31. h5 {[%clk 0:00:19.3]} 31... Rg7 {[%clk
0:00:02]} 32. hxg6+ {[%clk 0:00:18.9]} 32... Kh8 {[%clk 0:00:01.7]} 33. Re8+
{[%clk 0:00:19.3]} 33... Rg8 {[%clk 0:00:02.2]} 34. Qd4# {[%clk 0:00:16.7]} 1-0

[Event "Early-Titled-Tuesday-Blitz-October-24-2023"]
[Site "Chess.com"]
[Date "2023.10.24"]
[Round "11"]
[White "Korchmar_Vasiliy"]
[Black "Krakozia"]
[Result "0-1"]
[WhiteElo "2772"]
[BlackElo "2946"]
[TimeControl "180+1"]
[EndTime "10:02:50 PDT"]
[Termination "Krakozia won by resignation"]

1. e4 {[%clk 0:03:00.9]} 1... c5 {[%clk 0:02:58.1]} 2. d4 {[%clk 0:03:01.2]}
2... cxd4 {[%clk 0:02:57.4]} 3. Qxd4 {[%clk 0:03:02.1]} 3... Nc6 {[%clk
0:02:57.6]} 4. Qd3 {[%clk 0:03:02.8]} 4... e6 {[%clk 0:02:53.8]} 5. Nc3 {[%clk
0:03:03]} 5... a6 {[%clk 0:02:53.4]} 6. Bf4 {[%clk 0:03:03]} 6... b5 {[%clk
0:02:52.7]} 7. O-O-O {[%clk 0:03:02.8]} 7... Bb7 {[%clk 0:02:50.6]} 8. Nf3
{[%clk 0:03:02.4]} 8... Nf6 {[%clk 0:02:41.6]} 9. Kb1 {[%clk 0:02:51.4]} 9...
Rc8 {[%clk 0:02:39]} 10. Qe3 {[%clk 0:02:22.8]} 10... Bb4 {[%clk 0:02:10.1]} 11.
Nd5 {[%clk 0:02:17.4]} 11... exd5 {[%clk 0:01:49.2]} 12. exd5+ {[%clk
0:02:17.2]} 12... Ne7 {[%clk 0:01:49.5]} 13. d6 {[%clk 0:02:10.9]} 13... O-O
{[%clk 0:01:48.3]} 14. dxe7 {[%clk 0:02:10.2]} 14... Bxe7 {[%clk 0:01:48.2]} 15.
Bd3 {[%clk 0:02:05.9]} 15... Re8 {[%clk 0:01:48.3]} 16. Be5 {[%clk 0:01:30.8]}
16... Ng4 {[%clk 0:01:03.4]} 17. Qf4 {[%clk 0:01:30.7]} 17... Bxf3 {[%clk
0:01:01.9]} 18. gxf3 {[%clk 0:01:17.3]} 18... Nxe5 {[%clk 0:01:01.6]} 19. Qxe5
{[%clk 0:01:18.2]} 19... Bf6 {[%clk 0:01:01.6]} 20. Qf5 {[%clk 0:01:02.5]} 20...
g6 {[%clk 0:00:59.9]} 21. Rhg1 {[%clk 0:01:03.1]} 21... Bg7 {[%clk 0:00:55.2]}
22. Qg4 {[%clk 0:00:58]} 22... Qf6 {[%clk 0:00:54]} 23. Qb4 {[%clk 0:00:39.5]}
23... a5 {[%clk 0:00:53.7]} 24. Qb3 {[%clk 0:00:39.4]} 24... b4 {[%clk 0:00:40]}
25. Bb5 {[%clk 0:00:32.8]} 25... Rc5 {[%clk 0:00:39.7]} 26. Bxd7 {[%clk
0:00:30.5]} 26... Re2 {[%clk 0:00:39.1]} 27. Rge1 {[%clk 0:00:14.1]} 27... Rcxc2
{[%clk 0:00:13.3]} 28. Qxc2 {[%clk 0:00:11.4]} 28... Rxc2 {[%clk 0:00:13.1]} 29.
Re8+ {[%clk 0:00:11.9]} 29... Bf8 {[%clk 0:00:13.6]} 30. Kxc2 {[%clk 0:00:12.8]}
30... Qxf3 {[%clk 0:00:12.7]} 31. Ba4 {[%clk 0:00:08.6]} 31... Kg7 {[%clk
0:00:12.5]} 32. Rd2 {[%clk 0:00:04.2]} 32... Bc5 {[%clk 0:00:11.5]} 33. Rc8
{[%clk 0:00:04.1]} 33... Qf5+ {[%clk 0:00:10.3]} 0-1

[Event "Early-Titled-Tuesday-Blitz-October-24-2023"]
[Site "Chess.com"]
[Date "2023.10.24"]
[Round "11"]
[White "viktorgen2021"]
[Black "M1711"]
[Result "0-1"]
[WhiteElo "2441"]
[BlackElo "2565"]
[TimeControl "180+1"]
[EndTime "10:02:53 PDT"]
[Termination "M1711 won by resignation"]

1. Nf3 {[%clk 0:02:51]} 1... a6 {[%clk 0:03:00]} 2. c4 {[%clk 0:02:50.3]} 2...
h6 {[%clk 0:03:00.3]} 3. g3 {[%clk 0:02:50.8]} 3... d6 {[%clk 0:02:58.8]} 4. Bg2
{[%clk 0:02:51]} 4... e6 {[%clk 0:02:59.3]} 5. O-O {[%clk 0:02:51.5]} 5... Nc6
{[%clk 0:02:59.9]} 6. b3 {[%clk 0:02:51.6]} 6... Bd7 {[%clk 0:03:00.5]} 7. Bb2
{[%clk 0:02:52.2]} 7... e5 {[%clk 0:03:01]} 8. Nc3 {[%clk 0:02:52.5]} 8... Nf6
{[%clk 0:02:59.6]} 9. d3 {[%clk 0:02:50.9]} 9... Qc8 {[%clk 0:02:59.1]} 10. Re1
{[%clk 0:02:50.5]} 10... Bh3 {[%clk 0:02:59.2]} 11. Bh1 {[%clk 0:02:50.9]} 11...
Be7 {[%clk 0:02:59.1]} 12. a3 {[%clk 0:02:50.2]} 12... h5 {[%clk 0:02:56.8]} 13.
d4 {[%clk 0:02:45.8]} 13... h4 {[%clk 0:02:55.4]} 14. dxe5 {[%clk 0:02:44]}
14... dxe5 {[%clk 0:02:47.8]} 15. Nd5 {[%clk 0:02:43.1]} 15... hxg3 {[%clk
0:02:45.7]} 16. hxg3 {[%clk 0:02:34.4]} 16... Ng4 {[%clk 0:02:10.9]} 17. Nxe7
{[%clk 0:02:30.8]} 17... Kxe7 {[%clk 0:02:09.9]} 18. Qd5 {[%clk 0:02:18.2]}
18... Qf5 {[%clk 0:01:53.6]} 19. Qc5+ {[%clk 0:02:07]} 19... Kf6 {[%clk
0:01:47]} 20. Rad1 {[%clk 0:01:49]} 20... Kg6 {[%clk 0:01:13.9]} 21. Bc1 {[%clk
0:01:25.7]} 21... f6 {[%clk 0:01:07.5]} 22. b4 {[%clk 0:00:43.8]} 22... Nd4
{[%clk 0:00:43.3]} 23. Qxc7 {[%clk 0:00:14.4]} 23... Bf1 {[%clk 0:00:37.1]} 24.
Rxd4 {[%clk 0:00:06.8]} 24... Bxe2 {[%clk 0:00:26.1]} 25. Rxg4+ {[%clk
0:00:05.5]} 25... Qxg4 {[%clk 0:00:24.4]} 26. Rxe2 {[%clk 0:00:05.6]} 26...
Rxh1+ {[%clk 0:00:24.4]} 27. Kg2 {[%clk 0:00:04.9]} 27... Rxc1 {[%clk 0:00:20]}
28. Nh4+ {[%clk 0:00:04.7]} 28... Kh6 {[%clk 0:00:19.4]} 29. Qxb7 {[%clk
0:00:03.8]} 29... Qxe2 {[%clk 0:00:18]} 30. Qxa8 {[%clk 0:00:02.1]} 30... Qf1+
{[%clk 0:00:17.4]} 31. Kf3 {[%clk 0:00:02.1]} 31... Qh1+ {[%clk 0:00:17.2]} 32.
Ng2 {[%clk 0:00:01.7]} 32... Qh5+ {[%clk 0:00:16.1]} 33. g4 {[%clk 0:00:01.7]}
33... Rc3+ {[%clk 0:00:13.7]} 34. Ne3 {[%clk 0:00:01.5]} 34... Qh1+ {[%clk
0:00:13.8]} 35. Ke2 {[%clk 0:00:01.1]} 35... Qxa8 {[%clk 0:00:14.7]} 36. g5+
{[%clk 0:00:01.3]} 36... Kxg5 {[%clk 0:00:14.8]} 37. Nf5 {[%clk 0:00:02.2]}
37... Kxf5 {[%clk 0:00:15]} 0-1

[Event "Early-Titled-Tuesday-Blitz-October-24-2023"]
[Site "Chess.com"]
[Date "2023.10.24"]
[Round "11"]
[White "slorovel"]
[Black "Pumpkin_in_moonlight"]
[Result "1-0"]
[WhiteElo "2467"]
[BlackElo "2353"]
[TimeControl "180+1"]
[EndTime "10:02:54 PDT"]
[Termination "slorovel won on time"]

1. e4 {[%clk 0:03:00.3]} 1... e5 {[%clk 0:02:59.5]} 2. Nf3 {[%clk 0:02:52]} 2...
Nc6 {[%clk 0:02:59.2]} 3. Bb5 {[%clk 0:02:51.3]} 3... a6 {[%clk 0:02:59.3]} 4.
Ba4 {[%clk 0:02:51.2]} 4... Nf6 {[%clk 0:02:59.6]} 5. O-O {[%clk 0:02:50.6]}
5... Be7 {[%clk 0:02:59.1]} 6. Re1 {[%clk 0:02:50.4]} 6... b5 {[%clk 0:02:59.4]}
7. Bb3 {[%clk 0:02:50.3]} 7... d6 {[%clk 0:03:00]} 8. c3 {[%clk 0:02:48]} 8...
O-O {[%clk 0:02:59.8]} 9. d4 {[%clk 0:02:48.1]} 9... Bg4 {[%clk 0:02:58.3]} 10.
Be3 {[%clk 0:02:47.8]} 10... Re8 {[%clk 0:02:35.1]} 11. h3 {[%clk 0:02:43.6]}
11... Bxf3 {[%clk 0:02:30.1]} 12. Qxf3 {[%clk 0:02:43]} 12... Bf8 {[%clk
0:02:22.9]} 13. Nd2 {[%clk 0:02:42.8]} 13... h6 {[%clk 0:02:06.2]} 14. a4 {[%clk
0:02:38.6]} 14... Na5 {[%clk 0:01:36.9]} 15. Bc2 {[%clk 0:02:25.4]} 15... c5
{[%clk 0:01:36.7]} 16. Red1 {[%clk 0:02:08]} 16... Qc7 {[%clk 0:01:11.9]} 17. d5
{[%clk 0:01:46.8]} 17... Nd7 {[%clk 0:01:07.1]} 18. Nf1 {[%clk 0:01:46.4]} 18...
c4 {[%clk 0:01:02.2]} 19. g4 {[%clk 0:01:35.1]} 19... Nc5 {[%clk 0:01:01.6]} 20.
axb5 {[%clk 0:01:22.2]} 20... axb5 {[%clk 0:01:00.2]} 21. Ng3 {[%clk 0:01:21.7]}
21... Ncb3 {[%clk 0:00:41.9]} 22. Rab1 {[%clk 0:01:19.3]} 22... g6 {[%clk
0:00:25.2]} 23. h4 {[%clk 0:01:16.1]} 23... Nb7 {[%clk 0:00:24.4]} 24. h5 {[%clk
0:01:16.1]} 24... Qe7 {[%clk 0:00:19.8]} 25. Kg2 {[%clk 0:01:15.9]} 25... N7c5
{[%clk 0:00:18.9]} 26. Rh1 {[%clk 0:01:14.5]} 26... Nd3 {[%clk 0:00:18]} 27. Ne2
{[%clk 0:01:12.1]} 27... g5 {[%clk 0:00:13.6]} 28. Ng3 {[%clk 0:01:12]} 28...
Nf4+ {[%clk 0:00:13.3]} 29. Bxf4 {[%clk 0:01:12.1]} 29... exf4 {[%clk
0:00:11.9]} 30. Nf5 {[%clk 0:01:13]} 30... Qe5 {[%clk 0:00:11.9]} 31. Bxb3
{[%clk 0:01:11.4]} 31... cxb3 {[%clk 0:00:11.9]} 32. Rhe1 {[%clk 0:01:09.1]}
32... Bg7 {[%clk 0:00:11.2]} 33. Qd3 {[%clk 0:01:08]} 33... b4 {[%clk
0:00:08.9]} 34. c4 {[%clk 0:01:05.4]} 34... Ra2 {[%clk 0:00:08.1]} 35. Qxb3
{[%clk 0:01:04.7]} 35... Rea8 {[%clk 0:00:08]} 36. Nxg7 {[%clk 0:01:03.8]} 36...
Kxg7 {[%clk 0:00:07.6]} 37. f3 {[%clk 0:00:59.6]} 37... R8a4 {[%clk 0:00:05.7]}
38. Re2 {[%clk 0:00:55.9]} 38... Qd4 {[%clk 0:00:06]} 39. Rd1 {[%clk 0:00:52.2]}
39... Qe5 {[%clk 0:00:05.9]} 40. Red2 {[%clk 0:00:50.5]} 40... R4a3 {[%clk
0:00:05.7]} 41. bxa3 {[%clk 0:00:44.8]} 41... Rxa3 {[%clk 0:00:03.8]} 42. Qxb4
{[%clk 0:00:43]} 42... Re3 {[%clk 0:00:03.5]} 43. Qb2 {[%clk 0:00:39.6]} 43...
Rxe4 {[%clk 0:00:01.5]} 44. fxe4 {[%clk 0:00:38]} 1-0

[Event "Early-Titled-Tuesday-Blitz-October-24-2023"]
[Site "Chess.com"]
[Date "2023.10.24"]
[Round "11"]
[White "Chessbard1972"]
[Black "Let_it_be_1"]
[Result "0-1"]
[WhiteElo "2345"]
[BlackElo "2556"]
[TimeControl "180+1"]
[EndTime "10:03:04 PDT"]
[Termination "Let_it_be_1 won by resignation"]

1. d4 {[%clk 0:02:54.8]} 1... d5 {[%clk 0:02:59.7]} 2. c4 {[%clk 0:02:54.4]}
2... e6 {[%clk 0:03:00.1]} 3. Nc3 {[%clk 0:02:51.5]} 3... Be7 {[%clk 0:03:00.3]}
4. Bf4 {[%clk 0:02:49.4]} 4... Nf6 {[%clk 0:02:59.7]} 5. cxd5 {[%clk 0:02:48.1]}
5... exd5 {[%clk 0:02:59.5]} 6. e3 {[%clk 0:02:48.1]} 6... c6 {[%clk 0:02:59.9]}
7. h3 {[%clk 0:02:48]} 7... Bf5 {[%clk 0:02:56.6]} 8. Nf3 {[%clk 0:02:42.5]}
8... Nbd7 {[%clk 0:02:54.8]} 9. Be2 {[%clk 0:02:42]} 9... O-O {[%clk 0:02:54.2]}
10. O-O {[%clk 0:02:41.7]} 10... Re8 {[%clk 0:02:54]} 11. Rc1 {[%clk 0:02:40.2]}
11... Ne4 {[%clk 0:02:44.3]} 12. Nxe4 {[%clk 0:02:37.3]} 12... Bxe4 {[%clk
0:02:44.3]} 13. Ne5 {[%clk 0:02:33]} 13... Nxe5 {[%clk 0:02:41.1]} 14. Bxe5
{[%clk 0:02:33.2]} 14... Bd6 {[%clk 0:02:38.3]} 15. Bxd6 {[%clk 0:02:33]} 15...
Qxd6 {[%clk 0:02:38.4]} 16. Bf3 {[%clk 0:02:27.8]} 16... f5 {[%clk 0:02:36.7]}
17. Qe2 {[%clk 0:02:22.5]} 17... Re7 {[%clk 0:02:27.4]} 18. a3 {[%clk
0:02:21.4]} 18... Rae8 {[%clk 0:02:26.8]} 19. Bxe4 {[%clk 0:02:20.4]} 19... Rxe4
{[%clk 0:02:14.7]} 20. Qf3 {[%clk 0:02:18.4]} 20... f4 {[%clk 0:02:13.9]} 21.
Rc3 {[%clk 0:02:15.7]} 21... Qe7 {[%clk 0:01:54]} 22. exf4 {[%clk 0:02:12.6]}
22... Rxd4 {[%clk 0:01:52.7]} 23. Re3 {[%clk 0:02:12.2]} 23... Re4 {[%clk
0:01:52.6]} 24. Rfe1 {[%clk 0:02:11.5]} 24... Rxe3 {[%clk 0:01:40.9]} 25. Rxe3
{[%clk 0:02:05.4]} 25... Qf7 {[%clk 0:01:38]} 26. Rxe8+ {[%clk 0:02:05.2]} 26...
Qxe8 {[%clk 0:01:37.9]} 27. f5 {[%clk 0:02:03.5]} 27... Qe1+ {[%clk 0:01:34.4]}
28. Kh2 {[%clk 0:02:03.2]} 28... Qe5+ {[%clk 0:01:34.4]} 29. g3 {[%clk
0:02:03.3]} 29... Qxb2 {[%clk 0:01:14.7]} 30. Qe3 {[%clk 0:02:01.9]} 30... Qf6
{[%clk 0:01:09]} 31. Qe8+ {[%clk 0:01:58.4]} 31... Qf8 {[%clk 0:01:08.9]} 32.
Qe6+ {[%clk 0:01:58.3]} 32... Kh8 {[%clk 0:01:07.2]} 33. Kg2 {[%clk 0:01:54.1]}
33... h6 {[%clk 0:01:05.6]} 34. g4 {[%clk 0:01:53.8]} 34... Qd8 {[%clk
0:01:03.4]} 35. f4 {[%clk 0:01:46.8]} 35... d4 {[%clk 0:01:01.9]} 36. Kf2 {[%clk
0:01:40.6]} 36... d3 {[%clk 0:00:54.6]} 37. Ke1 {[%clk 0:01:40.4]} 37... c5
{[%clk 0:00:51.9]} 38. Kd2 {[%clk 0:01:39.8]} 38... b5 {[%clk 0:00:51]} 39. h4
{[%clk 0:01:22.2]} 39... c4 {[%clk 0:00:45.4]} 40. Qe5 {[%clk 0:01:18.7]} 40...
Qa5+ {[%clk 0:00:33.4]} 41. Ke3 {[%clk 0:01:16.1]} 41... Qe1+ {[%clk 0:00:29.5]}
42. Kf3 {[%clk 0:01:12.7]} 42... Qxe5 {[%clk 0:00:19.7]} 43. fxe5 {[%clk
0:01:11.3]} 43... c3 {[%clk 0:00:20]} 44. Ke3 {[%clk 0:01:10.5]} 44... c2 {[%clk
0:00:17.9]} 45. Kd2 {[%clk 0:01:10.5]} 45... Kg8 {[%clk 0:00:18]} 46. g5 {[%clk
0:01:09.8]} 46... hxg5 {[%clk 0:00:17.8]} 47. hxg5 {[%clk 0:01:09.9]} 47... Kf7
{[%clk 0:00:18.1]} 48. g6+ {[%clk 0:00:47.5]} 48... Ke7 {[%clk 0:00:18.3]} 49.
Kc1 {[%clk 0:00:47.4]} 49... a5 {[%clk 0:00:17.8]} 50. Kb2 {[%clk 0:00:47.5]}
50... b4 {[%clk 0:00:18.1]} 51. axb4 {[%clk 0:00:48]} 51... axb4 {[%clk
0:00:18.3]} 52. Kc1 {[%clk 0:00:48.4]} 52... b3 {[%clk 0:00:18.4]} 53. f6+
{[%clk 0:00:38.4]} 53... gxf6 {[%clk 0:00:18.5]} 54. g7 {[%clk 0:00:38.5]} 54...
Kf7 {[%clk 0:00:18.8]} 55. exf6 {[%clk 0:00:39.1]} 55... Kg8 {[%clk 0:00:17.8]}
56. Kd2 {[%clk 0:00:37.4]} 56... b2 {[%clk 0:00:17.8]} 0-1